bitfinex/quotes_SOLUSD_20260208
["timestamp","ask_amount","ask_price","bid_price","bid_amount"]
[1770545822810,5.16387049,87.96,87.901,56.88191436]
[1770545823010,5.16387049,88.01,87.951,4.18196696]
[1770545823212,5.16387049,88.01,87.97,5.16387049]
[1770545823412,13.84004287,88.01,87.97,13.84004287]
[1770545824035,11.36247429,88.009,87.97,13.84004287]
[1770545824239,11.36247429,88.009,87.96,13.84004287]
[1770545824527,39.76866002,88.009,87.971,11.36738243]
[1770545824930,4.41281633,88.008,87.971,11.36738243]
[1770545825514,4.41281633,88.006,87.971,15.54934939]
[1770545827130,4.41281633,88.006,87.971,11.36738243]
[1770545827734,4.15022129,88.004,87.971,11.36738243]
[1770545829022,4.15022129,87.999,87.965,11.3681016]
[1770545829423,4.15022129,87.999,87.969,11.36753794]
[1770545831118,4.15022129,87.997,87.969,11.36753794]
[1770545833130,4.15022129,87.997,87.96,13.84004287]
[1770545833336,4.15022129,87.997,87.955,2.2]
[1770545833337,13.84004287,88.03,87.981,4.17605368]
[1770545833628,4.49585304,88.029,87.99,13.84004287]
[1770545834355,4.49585304,88.028,87.99,13.84004287]
[1770545834524,4.49585304,88.026,87.99,25.2049093]
[1770545835221,4.49585304,88.026,87.99,11.36486643]
[1770545836046,4.49585304,88.024,87.99,13.84004287]
[1770545836844,4.49585304,88.024,87.989,4.17605368]
[1770545837022,4.49585304,88.024,87.991,4.17605368]
[1770545838648,4.49585304,88.036,88.011,4.17605368]
[1770545838943,4.49585304,88.032,88.011,4.17605368]
[1770545840428,4.49585304,88.038,88.011,4.17605368]
[1770545841128,4.49585304,88.035,88.013,4.17605368]
[1770545841335,4.49585304,88.041,88.013,4.17605368]
[1770545841649,4.49585304,88.035,88.013,4.17605368]
[1770545845356,4.49585304,88.032,88.0,13.84004287]
[1770545845554,4.49585304,88.032,88.001,4.17605368]
[1770545845771,4.49585304,88.032,88.002,4.17605368]
[1770545847552,4.49585304,88.03,88.002,4.17605368]
[1770545849548,5.1630246,88.02,87.991,4.17605368]
[1770545849735,4.49585304,88.019,87.991,4.17605368]
[1770545851358,4.49585304,88.017,87.988,11.36505869]
[1770545851550,4.49585304,88.017,87.984,4.17605368]
[1770545853354,4.49585304,88.017,87.985,11.36555918]
[1770545854355,4.49585304,88.015,87.985,11.36555918]
[1770545856452,11.36182879,88.014,87.981,11.3660904]
[1770545856660,4.41688584,88.013,87.981,11.3660904]
[1770545858459,4.41688584,88.013,87.982,4.2895228]
[1770545858642,4.41688584,88.013,87.984,4.2895228]
[1770545860640,4.41688584,88.011,87.984,4.2895228]
[1770545860841,4.41688584,88.011,87.978,4.2895228]
[1770545864341,4.41688584,88.011,87.981,4.2895228]
[1770545865849,4.41688584,88.011,87.983,4.2895228]
[1770545867872,4.41688584,88.011,87.984,11.36570285]
[1770545868052,4.41688584,88.011,87.985,4.2895228]
[1770545869754,4.41688584,88.011,87.987,4.2895228]
[1770545870648,4.41688584,88.029,87.991,4.2895228]
[1770545870966,7.11651337,88.033,88.011,4.2895228]
[1770545871155,11.53339921,88.033,88.011,4.2895228]
[1770545871350,7.11651337,88.033,88.011,4.2895228]
[1770545871555,4.41688584,88.032,88.011,4.2895228]
[1770545873571,4.41688584,88.029,87.996,4.2895228]
[1770545875568,4.41688584,88.027,87.996,4.2895228]
[1770545876672,4.41688584,88.027,87.997,11.36402377]
[1770545877579,4.41688584,88.025,87.992,11.36466455]
[1770545877872,4.41688584,88.025,87.992,4.2895228]
[1770545878775,4.41688584,88.025,87.995,15.65380091]
[1770545879467,4.41688584,88.025,87.996,4.2895228]
[1770545880178,4.41688584,88.025,87.997,11.36402377]
[1770545880565,11.36053803,88.024,87.997,11.36402377]
[1770545880774,4.41688584,88.023,87.996,4.2895228]
[1770545884268,4.41688584,88.023,87.997,11.36402377]
[1770545884469,4.41688584,88.023,87.997,4.2895228]
[1770545885888,4.41688584,88.023,87.995,11.36417367]
[1770545886067,4.41688584,88.023,87.995,15.61845291]
[1770545886468,4.41688584,88.023,87.996,4.25427924]
[1770545888595,4.13890422,88.021,87.996,4.25427924]
[1770545890092,4.13890422,88.021,87.998,4.25427924]
[1770545891994,4.13890422,88.021,87.999,15.61804473]
[1770545892667,4.13890422,88.027,88.0,4.25427924]
[1770545892869,4.13890422,88.027,88.001,4.25427924]
[1770545894104,4.13890422,88.027,88.002,11.3633781]
[1770545894381,4.13890422,88.027,88.003,4.4169993]
[1770545896304,4.13890422,88.027,88.005,4.4169993]
[1770545900096,4.13890422,88.027,88.007,4.4169993]
[1770545902694,4.13890422,88.027,88.008,11.36260339]
[1770545903198,4.13890422,88.027,88.008,15.7569486]
[1770545903695,4.13890422,88.027,88.009,4.38412794]
[1770545904203,4.44330055,88.032,88.009,4.38412794]
[1770545905198,4.44330055,88.032,88.005,4.37402803]
[1770545905398,4.44330055,88.03,88.005,4.37402803]
[1770545908600,4.44330055,88.03,88.007,4.34441901]
[1770545911205,5.1631638,88.04,87.997,2.2]
[1770545911206,4.44330055,88.028,87.997,2.2]
[1770545911412,4.44330055,88.028,87.998,4.31581859]
[1770545912512,4.44330055,88.026,87.998,4.31581859]
[1770545916012,4.24435552,88.045,88.011,4.20899061]
[1770545917208,4.24435552,88.039,88.006,4.20899061]
[1770545917506,4.24435552,88.029,87.994,4.20899061]
[1770545917893,4.24435552,87.997,87.943,28.4272085]
[1770545918092,4.24435552,87.979,87.944,4.20899061]
[1770545918498,4.24435552,87.969,87.944,4.20899061]
[1770545919290,4.24435552,87.979,87.944,4.20899061]
[1770545919693,4.24435552,87.949,87.92,4.20899061]
[1770545920100,4.24435552,87.949,87.922,4.20899061]
[1770545920399,4.24435552,87.955,87.922,4.20899061]
[1770545921408,4.24435552,87.955,87.931,4.20899061]
[1770545921920,4.24435552,87.955,87.932,11.37242414]
[1770545922219,4.24435552,87.955,87.933,4.20899061]
[1770545924408,4.24435552,87.953,87.924,4.19470724]
[1770545926415,4.24435552,87.969,87.931,4.17894979]
[1770545927099,4.24435552,87.969,87.941,4.17120655]
[1770545927305,4.24435552,87.967,87.941,4.17120655]
[1770545929123,11.36802855,87.966,87.941,4.17120655]
[1770545929325,4.24435552,87.965,87.941,4.17120655]
[1770545931525,4.24435552,87.976,87.943,4.1411128]
[1770545932725,4.24435552,87.976,87.945,4.12657945]
[1770545933624,4.24435552,87.974,87.945,4.12657945]
[1770545935322,4.24435552,87.972,87.945,4.12657945]
[1770545935525,4.24435552,87.972,87.935,4.11237805]
[1770545936523,4.24435552,87.97,87.937,4.10539944]
[1770545936702,4.24435552,87.97,87.941,4.10539944]
[1770545937607,11.36738243,87.971,87.941,4.10539944]
[1770545938112,15.61173795,87.971,87.941,4.10539944]
[1770545938520,4.24435552,87.97,87.943,4.09168179]
[1770545940823,4.24435552,87.97,87.944,11.37087237]
[1770545941008,4.24435552,87.97,87.945,4.07169052]
[1770545941203,4.24435552,87.986,87.961,4.07169052]
[1770545941515,4.24435552,87.992,87.971,4.07169052]
[1770545942014,4.24435552,87.989,87.947,4.06517926]
[1770545942217,4.24435552,87.969,87.93,2.2]
[1770545942410,4.24435552,87.959,87.926,11.37309351]
[1770545942601,4.24435552,87.959,87.926,11.37314351]
[1770545942808,4.24435552,87.957,87.926,11.37314351]
[1770545943216,4.24435552,87.957,87.926,15.43188629]
[1770545943420,4.24435552,87.957,87.927,4.05874278]
[1770545945728,4.00740801,87.955,87.927,4.05874278]
[1770545946424,4.00740801,87.949,87.92,3.99819418]
[1770545947820,4.00740801,87.947,87.92,3.99819418]
[1770545948029,11.3703552,87.948,87.91,11.37524562]
[1770545948030,4.00740801,87.939,87.91,11.37524562]
[1770545948327,4.00740801,87.939,87.911,3.99819418]
[1770545951636,4.00740801,87.939,87.913,3.99819418]
[1770545952435,4.00740801,87.951,87.921,3.99819418]
[1770545952929,5.1631638,87.95,87.912,11.37501137]
[1770545953144,4.00740801,87.939,87.913,3.99263879]
[1770545954345,4.18238514,87.937,87.908,74.80390889]
[1770545954517,4.18238514,87.937,87.908,78.62399027]
[1770545954715,4.18238514,87.937,87.909,3.82008138]
[1770545954919,4.18238514,87.937,87.908,74.80390889]
[1770545955632,4.18238514,87.929,87.908,74.80390889]
[1770545955838,5.1631638,87.92,87.908,64.86871551]
[1770545956019,4.18238514,87.919,87.887,3.82008138]
[1770545956218,3.65299402,87.919,87.887,3.82008138]
[1770545957433,3.64764378,87.899,87.88,0.2]
[1770545959341,3.64764378,87.899,87.88,4.02008138]
[1770545959533,3.63712694,87.904,87.88,4.02008138]
[1770545960540,3.63195895,87.899,87.88,0.2]
[1770545961840,3.63567643,87.897,87.88,0.2]
[1770545963346,7.24361492,87.933,87.891,3.82008138]
[1770545963641,5.1631638,87.93,87.891,3.82008138]
[1770545963848,3.65302571,87.929,87.891,3.82008138]
[1770545965232,3.66155118,87.928,87.892,11.37759978]
[1770545965438,3.66155118,87.932,87.901,3.82008138]
[1770545966945,7.24361492,87.933,87.911,3.82008138]
[1770545968652,7.24361492,87.933,87.913,3.82008138]
[1770545969933,7.24361492,87.933,87.914,11.37475259]
[1770545970140,7.24361492,87.933,87.915,3.82008138]
[1770545970945,3.71068653,87.929,87.88,4.02008138]
[1770545971146,3.71068653,87.909,87.88,4.02008138]
[1770545971347,0.46698162,87.915,87.883,3.82008138]
[1770545972145,0.46698162,87.915,87.884,11.37863547]
[1770545972347,0.46698162,87.915,87.885,3.82008138]
[1770545974061,0.46698162,87.915,87.887,3.82008138]
[1770545974360,3.73400616,87.925,87.891,3.82008138]
[1770545974545,7.25867468,87.928,87.901,3.82008138]
[1770545974942,7.25867468,87.928,87.888,2.2]
[1770545974943,3.74160149,87.927,87.895,3.82008138]
[1770545975345,7.25867468,87.928,87.901,3.82008138]
[1770545975973,7.25867468,87.928,87.903,4.25251546]
[1770545977265,7.25867468,87.928,87.905,4.25251546]
[1770545977449,7.25867468,87.928,87.911,4.25251546]
[1770545979248,3.77828942,87.927,87.898,4.25251546]
[1770545980352,3.77828942,87.927,87.899,11.3766937]
[1770545980647,3.78537611,87.909,87.882,4.25251546]
[1770545981754,5.17436997,87.91,87.882,4.25251546]
[1770545981953,5.17436997,87.91,87.879,11.37917198]
[1770545981954,5.17436997,87.91,87.885,4.25251546]
[1770545982563,3.79930624,87.909,87.879,15.63173454]
[1770545982779,3.79930624,87.908,87.879,4.25251546]
[1770545982963,3.79930624,87.908,87.88,4.45251546]
[1770545984857,3.79930624,87.908,87.882,4.25251546]
[1770545989452,3.79930624,87.908,87.884,4.25251546]
[1770545991879,3.8643273,87.906,87.884,4.25251546]
[1770545992759,11.37565836,87.907,87.88,0.2]
[1770545992760,3.87042576,87.899,87.88,0.2]
[1770545993771,11.37682313,87.898,87.88,0.2]
[1770545993985,3.87645418,87.897,87.88,0.2]
[1770546002290,3.92225447,87.906,87.882,4.25251546]
[1770546002594,7.24851151,87.919,87.891,4.25251546]
[1770546003381,3.92768759,87.918,87.891,4.25251546]
[1770546003584,3.92768759,87.909,87.881,4.25251546]
[1770546003968,3.92768759,87.909,87.88,0.2]
[1770546004176,3.9330583,87.889,87.88,0.2]
[1770546004793,3.93836732,87.904,87.881,4.25251546]
[1770546005088,11.37423508,87.918,87.891,4.25251546]
[1770546005671,7.24851151,87.919,87.891,4.25251546]
[1770546005870,7.24851151,87.919,87.901,3.95797494]
[1770546007073,7.24851151,87.919,87.891,11.37772204]
[1770546007074,2.48346247,87.918,87.892,3.95797494]
[1770546007274,7.24851151,87.919,87.892,3.95797494]
[1770546007671,5.17436997,87.95,87.911,3.95797494]
[1770546007907,4.1271926,87.949,87.921,3.95797494]
[1770546008196,4.1271926,87.954,87.921,3.95797494]
[1770546008369,5.17436997,87.97,87.921,3.95797494]
[1770546008370,4.1271926,87.968,87.931,3.95797494]
[1770546010479,4.1271926,87.968,87.881,5.13032502]
[1770546010480,4.1271926,87.968,87.941,3.95797494]
[1770546010871,7.2542382,87.972,87.941,3.95797494]
[1770546011077,7.2542382,87.972,87.951,3.95797494]
[1770546012868,28.40992282,87.998,87.92,5.17436997]
[1770546012869,4.1271926,88.001,87.962,3.95797494]
[1770546013081,4.1271926,88.007,87.981,3.95797494]
[1770546015493,4.28530932,87.999,87.96,5.17436997]
[1770546015795,4.28530932,87.999,87.962,4.14874028]
[1770546016789,4.28530932,87.997,87.962,4.14874028]
[1770546017295,4.28530932,87.989,87.962,4.14874028]
[1770546017884,4.28530932,87.989,87.954,11.36953404]
[1770546018184,4.28530932,87.989,87.95,5.17436997]
[1770546018185,4.28530932,87.979,87.948,4.14874028]
[1770546018393,4.28530932,87.959,87.897,4.14874028]
[1770546018694,39.77363121,87.998,87.911,4.14874028]
[1770546018695,4.28530932,87.949,87.911,4.14874028]
[1770546018992,4.28530932,87.949,87.91,5.17436997]
[1770546018993,4.28530932,87.949,87.913,4.14874028]
[1770546019408,5.13032502,87.979,87.912,11.37501137]
[1770546019409,4.28530932,87.976,87.941,4.14874028]
[1770546020377,4.28530932,87.975,87.941,4.14874028]
[1770546020579,4.28530932,87.973,87.941,4.14874028]
[1770546022899,4.28530932,87.969,87.93,5.17436997]
[1770546023116,4.28530932,87.949,87.919,4.14874028]
[1770546023399,4.28530932,87.949,87.923,4.14874028]
[1770546023597,4.28530932,87.949,87.922,11.37366623]
[1770546023598,4.28530932,87.949,87.917,11.37430438]
[1770546023783,4.28530932,87.949,87.918,4.14874028]
[1770546024188,4.28530932,87.949,87.922,4.14874028]
[1770546025103,4.28530932,87.949,87.923,11.37358825]
[1770546025286,4.28530932,87.959,87.924,4.14874028]
[1770546026293,4.28530932,87.959,87.926,4.14874028]
[1770546031014,7.24383979,87.974,87.941,4.14874028]
[1770546031325,4.28530932,87.973,87.941,4.14874028]
[1770546031602,7.24383979,87.974,87.95,5.1721049]
[1770546031809,7.24383979,87.974,87.951,4.14874028]
[1770546033292,7.24383979,87.974,87.961,4.14874028]
[1770546033608,5.2721049,88.0,87.961,4.14874028]
[1770546033609,4.38530932,88.0,87.961,4.14874028]
[1770546033814,11.36376549,87.999,87.961,4.14874028]
[1770546034110,4.28530932,87.998,87.961,4.14874028]
[1770546034783,4.28530932,87.989,87.946,4.14874028]
[1770546035413,5.1721049,87.98,87.948,4.14874028]
[1770546035599,4.28530932,87.979,87.948,4.14874028]
[1770546036304,15.77376592,87.988,87.951,4.48731934]
[1770546036491,4.40857976,87.987,87.951,4.48731934]
[1770546037502,4.40857976,87.987,87.961,4.48731934]
[1770546038716,4.40857976,87.987,87.961,15.85597583]
[1770546040423,4.40857976,87.987,87.956,11.36922449]
[1770546040602,4.40857976,87.979,87.954,4.48731934]
[1770546043626,4.40857976,87.979,87.952,11.36978749]
[1770546043627,4.40857976,87.977,87.947,11.37041337]
[1770546043812,4.40857976,87.977,87.944,4.48731934]
[1770546045723,4.40857976,87.975,87.944,4.48731934]
[1770546047520,4.40857976,87.973,87.944,4.48731934]
[1770546050221,4.40857976,87.991,87.961,4.48731934]
[1770546052225,4.40857976,87.998,87.963,4.48731934]
[1770546053425,4.40857976,87.996,87.963,4.48731934]
[1770546053829,4.40857976,87.996,87.965,4.48731934]
[1770546060110,4.40857976,87.994,87.965,4.48731934]
[1770546061128,4.40857976,87.994,87.928,2.2]
[1770546061129,0.1,88.0,87.971,4.48731934]
[1770546061318,4.40857976,87.999,87.971,4.48731934]
[1770546062848,4.40857976,87.997,87.966,11.36802855]
[1770546063338,4.40857976,87.979,87.94,4.48731934]
[1770546063632,4.40857976,87.979,87.949,11.3701806]
[1770546064014,4.40857976,87.979,87.949,15.85749994]
[1770546064211,4.40857976,87.979,87.95,4.48731934]
[1770546064933,4.40857976,87.979,87.951,15.8572867]
[1770546065132,4.40857976,87.979,87.952,4.48731934]
[1770546065313,4.40857976,87.959,87.881,4.48731934]
[1770546065519,4.40857976,87.929,87.903,4.48731934]
[1770546065715,4.22649566,87.919,87.889,4.15402856]
[1770546065944,4.22649566,87.919,87.888,11.3780998]
[1770546066316,4.22649566,87.909,87.882,4.15402856]
[1770546066925,4.22649566,87.907,87.882,4.15402856]
[1770546069533,4.22649566,87.907,87.88,0.2]
[1770546069736,4.22649566,87.907,87.82,0.2]
[1770546069737,4.22649566,87.879,87.823,4.15402856]
[1770546069928,5.1721049,87.88,87.823,5.94769157]
[1770546069929,4.22649566,87.859,87.823,5.94769157]
[1770546070237,5.1721049,87.88,87.82,0.2]
[1770546070238,4.22649566,87.849,87.82,0.2]
[1770546071412,4.22649566,87.847,87.82,0.2]
[1770546072324,4.22649566,87.839,87.82,0.2]
[1770546072529,4.22649566,87.848,87.821,4.15402856]
[1770546073636,4.22649566,87.848,87.822,11.38666848]
[1770546073839,46.68118075,87.849,87.834,4.40092991]
[1770546074050,56.87971253,87.905,87.82,0.2]
[1770546074051,4.30633875,87.868,87.82,0.2]
[1770546074337,4.30633875,87.839,87.82,0.2]
[1770546074932,4.30633875,87.837,87.82,0.2]
[1770546075132,15.88352422,87.837,87.808,2.21785878]
[1770546075328,4.30633875,87.835,87.801,2.21785878]
[1770546075647,4.30633875,87.834,87.801,2.21785878]
[1770546075835,4.30633875,87.833,87.801,13.60718889]
[1770546076030,13.53352422,87.833,87.802,2.21785878]
[1770546076235,13.33212422,87.832,87.802,2.21785878]
[1770546076542,8.86387648,87.831,87.802,2.21785878]
[1770546077125,4.30633875,87.829,87.801,9.53011316]
[1770546077425,4.30633875,87.829,87.794,2.21785878]
[1770546077426,4.30633875,87.827,87.795,11.3901316]
[1770546077629,4.30633875,87.826,87.795,11.3901316]
[1770546077826,4.30633875,87.825,87.795,11.3901316]
[1770546078029,4.30633875,87.824,87.802,11.38919953]
[1770546078343,7.33716992,87.824,87.81,16.10784553]
[1770546078531,7.33716992,87.824,87.802,11.38919953]
[1770546078842,7.33716992,87.824,87.803,2.21785878]
[1770546079134,7.33716992,87.824,87.79,0.2]
[1770546079135,7.33716992,87.824,87.81,13.88998675]
[1770546079534,4.5,87.857,87.81,13.88998675]
[1770546079730,4.5,87.857,87.83,13.88998675]
[1770546080321,4.5,87.857,87.804,39.86150971]
[1770546080544,4.5,87.81,87.79,0.2]
[1770546081241,4.5,87.828,87.791,11.39068925]
[1770546082240,4.5,87.828,87.79,0.2]
[1770546082629,4.5,87.828,87.79,14.08998675]
[1770546083240,4.5,87.826,87.79,14.08998675]
[1770546083429,4.5,87.826,87.79,0.2]
[1770546083630,4.5,87.826,87.79,14.08998675]
[1770546084447,4.5,87.819,87.79,0.2]
[1770546084745,11.38602024,87.827,87.8,13.88998675]
[1770546085325,42.35113524,87.84,87.78,0.2]
[1770546085326,4.5,87.809,87.78,0.2]
[1770546085527,4.4,87.779,87.75,0.2]
[1770546085732,4.4,87.759,87.75,0.2]
[1770546085927,68.44,87.828,87.75,0.2]
[1770546085928,13.88998675,87.79,87.75,14.08998675]
[1770546086825,5.13032502,87.808,87.75,14.08998675]
[1770546086826,13.88998675,87.8,87.76,13.88998675]
[1770546087231,11.38965136,87.799,87.751,0.4]
[1770546087631,39.86377976,87.799,87.751,0.4]
[1770546087836,4.30633875,87.798,87.751,0.4]
[1770546088335,4.30633875,87.789,87.75,0.2]
[1770546088533,39.86377976,87.799,87.77,13.88998675]
[1770546088731,39.86377976,87.799,87.761,0.4]
[1770546088732,4.30633875,87.798,87.761,0.4]
[1770546089127,4.30633875,87.798,87.752,11.39575166]
[1770546089128,4.30633875,87.798,87.77,13.88998675]
[1770546089333,4.30633875,87.808,87.78,13.88998675]
[1770546089539,4.30633875,87.808,87.78,13.89905477]
[1770546089970,4.30633875,87.789,87.75,0.2]
[1770546090136,4.30633875,87.777,87.75,0.2]
[1770546090749,96.78998849,87.819,87.76,14.29905477]
[1770546090750,4.30633875,87.799,87.76,14.29905477]
[1770546091551,4.30633875,87.797,87.76,14.29905477]
[1770546091847,4.30633875,87.797,87.761,0.4]
[1770546092048,11.38869644,87.807,87.781,0.38856481]
[1770546092443,15.6942718,87.813,87.781,0.38856481]
[1770546092651,4.30633875,87.812,87.781,0.38856481]
[1770546094567,4.30633875,87.789,87.75,0.2]
[1770546094736,4.30633875,87.769,87.75,0.2]
[1770546095356,5.13032502,87.798,87.75,0.2]
[1770546095357,4.30633875,87.777,87.75,0.2]
[1770546095935,4.30633875,87.777,87.75,14.09905477]
[1770546096136,4.30633875,87.777,87.75,0.2]
[1770546096335,33.60480224,87.798,87.75,0.2]
[1770546096336,4.39048679,87.775,87.75,0.2]
[1770546097540,4.39048679,87.783,87.75,14.09905477]
[1770546097746,4.39048679,87.783,87.751,11.6526469]
[1770546098051,11.3918571,87.782,87.751,0.25676538]
[1770546098244,4.39048679,87.781,87.751,0.25676538]
[1770546099159,4.39048679,87.779,87.74,0.2]
[1770546099343,4.39048679,87.749,87.72,0.2]
[1770546099854,4.39048679,87.749,87.72,14.09905477]
[1770546100051,4.39048679,87.749,87.72,0.2]
[1770546101247,4.39048679,87.749,87.72,14.47289464]
[1770546101662,11.39627114,87.748,87.72,14.47289464]
[1770546101870,4.39048679,87.747,87.69,0.2]
[1770546102161,4.39048679,87.696,87.619,0.75370035]
[1770546102357,4.39048679,87.669,87.64,13.89905477]
[1770546102555,4.39048679,87.689,87.64,13.89905477]
[1770546102754,4.39048679,87.689,87.65,13.89905477]
[1770546103059,4.39048679,87.689,87.651,0.73379216]
[1770546103246,4.39048679,87.726,87.681,0.73379216]
[1770546103443,4.39048679,87.726,87.7,13.89905477]
[1770546103757,4.39048679,87.726,87.68,13.89905477]
[1770546103960,4.39048679,87.726,87.635,0.71411263]
[1770546104160,13.89905477,87.67,87.631,0.71411263]
[1770546104367,4.39048679,87.669,87.62,13.89905477]
[1770546104550,4.39048679,87.639,87.627,1e-08]
[1770546105467,4.39048679,87.637,87.627,1e-08]
[1770546106145,5.13032502,87.622,87.547,0.6789299]
[1770546106462,4.39048679,87.553,87.486,0.6789299]
[1770546106762,4.39048679,87.553,87.51,13.89905477]
[1770546106939,13.89905477,87.54,87.496,0.66164103]
[1770546107142,13.89905477,87.57,87.521,0.66164103]
[1770546107348,13.89905477,87.6,87.55,13.89905477]
[1770546107559,13.89905477,87.6,87.522,39.98994538]
[1770546107560,13.89905477,87.57,87.523,4.31990287]
[1770546107949,13.89905477,87.6,87.523,4.31990287]
[1770546107950,13.89905477,87.56,87.523,4.31990287]
[1770546108262,13.89905477,87.6,87.495,4.31990287]
[1770546108440,13.89905477,87.6,87.496,4.31990287]
[1770546108441,5.13032502,87.597,87.496,4.31990287]
[1770546108641,13.89905477,87.54,87.496,4.31990287]
[1770546109168,13.89905477,87.54,87.498,11.42873402]
[1770546109350,4.39048679,87.539,87.498,11.42873402]
[1770546109663,4.39048679,87.539,87.5,13.89905477]
[1770546109870,4.39048679,87.569,87.521,4.31990287]
[1770546110167,5.13032502,87.586,87.521,4.31990287]
[1770546110168,4.39048679,87.58,87.521,4.31990287]
[1770546110345,11.41565542,87.599,87.519,11.42609033]
[1770546110346,4.39048679,87.599,87.551,4.31990287]
[1770546110553,4.39048679,87.589,87.551,4.31990287]
[1770546110947,4.39048679,87.601,87.56,13.89905477]
[1770546111147,4.39048679,87.601,87.561,4.31990287]
[1770546111448,4.39048679,87.601,87.562,11.4204792]
[1770546112168,4.39048679,87.601,87.57,13.89905477]
[1770546112670,4.39048679,87.601,87.543,57.11427855]
[1770546112671,4.39048679,87.579,87.549,11.42208189]
[1770546112860,4.39048679,87.579,87.519,4.31990287]
[1770546113054,13.89905477,87.56,87.521,4.31990287]
[1770546113364,4.39048679,87.569,87.522,4.31990287]
[1770546113563,4.39048679,87.593,87.551,4.31990287]
[1770546113765,57.68369916,87.682,87.521,39.99040229]
[1770546113766,13.89905477,87.58,87.539,4.31990287]
[1770546113970,13.89905477,87.57,87.539,4.31990287]
[1770546115069,13.89905477,87.57,87.53,13.89905477]
[1770546115268,13.89905477,87.57,87.528,4.31990287]
[1770546115474,13.89905477,87.57,87.529,11.42478492]
[1770546116170,13.89905477,87.56,87.529,11.42478492]
[1770546116557,13.89905477,87.54,87.518,11.87236693]
[1770546117270,4.39048679,87.575,87.531,4.31990287]
[1770546117575,18.28954156,87.58,87.533,4.31990287]
[1770546117889,4.39048679,87.589,87.55,13.89905477]
[1770546118358,4.39048679,87.589,87.541,4.31990287]
[1770546118553,4.39048679,87.589,87.532,39.98537677]
[1770546118760,4.39048679,87.589,87.519,4.31990287]
[1770546118761,4.39048679,87.559,87.519,4.31990287]
[1770546118955,4.39048679,87.559,87.52,13.89905477]
[1770546119158,4.39048679,87.559,87.532,11.42439336]
[1770546119371,4.39048679,87.559,87.521,11.42582922]
[1770546120269,4.39048679,87.569,87.522,4.31990287]
[1770546120775,4.39048679,87.559,87.521,11.42582922]
[1770546121083,4.39048679,87.549,87.518,0.44625264]
[1770546121576,4.39048679,87.529,87.481,11.43099482]
[1770546121778,4.39048679,87.522,87.486,11.43033956]
[1770546122174,4.39048679,87.519,87.477,11.43154781]
[1770546122371,4.39048679,87.509,87.477,11.43154781]
[1770546122564,4.39048679,87.509,87.487,11.43026964]
[1770546122966,4.39048679,87.489,87.417,4.31990287]
[1770546123169,4.39048679,87.429,87.405,11.44098635]
[1770546123482,5.94865139,87.451,87.412,11.4399588]
[1770546123883,13.89905477,87.44,87.41,11.44031291]
[1770546124081,102.81131838,87.539,87.375,4.31990287]
[1770546124082,5.13032502,87.486,87.375,4.31990287]
[1770546124380,5.13032502,87.486,87.304,45.81651239]
[1770546124381,13.89905477,87.43,87.381,4.31990287]
[1770546124572,13.89905477,87.46,87.41,13.89905477]
[1770546124776,13.89905477,87.45,87.401,4.31990287]
[1770546124980,13.89905477,87.45,87.41,13.89905477]
[1770546125163,13.89905477,87.44,87.411,11.44020775]
[1770546125369,4.39048679,87.431,87.389,4.31990287]
[1770546125565,4.39048679,87.431,87.39,53.94932075]
[1770546125967,4.15688398,87.399,87.335,11.45007402]
[1770546126183,13.89905477,87.36,87.321,15.25295991]
[1770546126383,4.15688398,87.359,87.327,5.95486332]
[1770546126566,4.15688398,87.385,87.341,3.80096097]
[1770546126887,13.89905477,87.42,87.33,13.89905477]
[1770546126888,13.89905477,87.37,87.33,13.89905477]
[1770546127182,45.73520105,87.46,87.321,40.0819963]
[1770546127183,4.15688398,87.426,87.361,3.80096097]
[1770546127383,4.15688398,87.399,87.36,13.89905477]
[1770546127691,4.15688398,87.389,87.34,13.89905477]
[1770546127870,4.15688398,87.389,87.352,11.44784984]
[1770546128186,4.15688398,87.379,87.315,28.63175421]
[1770546128483,4.15688398,87.359,87.33,13.89905477]
[1770546128876,13.89905477,87.38,87.33,3.80096097]
[1770546129081,13.89905477,87.38,87.331,3.80096097]
[1770546129586,5.13032502,87.433,87.34,13.89905477]
[1770546129781,13.89905477,87.38,87.34,13.89905477]
[1770546129968,13.89905477,87.39,87.34,17.70001574]
[1770546130169,13.89905477,87.38,87.34,3.80096097]
[1770546130486,13.89905477,87.38,87.34,17.70001574]
[1770546130683,13.89905477,87.39,87.341,3.80096097]
[1770546130884,4.15688398,87.389,87.341,3.80096097]
[1770546131289,4.15688398,87.379,87.34,13.89905477]
[1770546131471,4.15688398,87.379,87.35,13.89905477]
[1770546132071,4.15688398,87.39,87.35,13.89905477]
[1770546132473,4.15688398,87.389,87.343,3.80096097]
[1770546132674,4.15688398,87.399,87.36,13.89905477]
[1770546132893,4.15688398,87.399,87.351,3.80096097]
[1770546133076,18.05593875,87.38,87.342,11.44924549]
[1770546133291,4.15688398,87.379,87.342,11.44924549]
[1770546133991,4.15688398,87.379,87.34,13.89905477]
[1770546133992,3.82434625,87.378,87.341,11.44937658]
[1770546134775,3.82434625,87.378,87.35,13.89905477]